Workbook

Sheet Costi di ristrutturazione bagno
B1: FOGLIO DI LAVORO COSTI RISTRUTTURAZIONE BAGNO
B2: NOTA: le colonne Differenza nella tabella mostrano se il costo effettivo è stato superiore a quanto stimato. I numeri in rosso indicano valori superiori (negativi) mentre quelli in nero indicano valori inferiori (positivi).
E3: Costo dettagliato (€) | H3: Costo totale (€)
B4: Area | C4: Articoli | D4: Quantità | E4: Stimato | F4: Effettivo | G4: Differenza | H4: Stimato | I4: Effettivo | J4: Differenza
B5: Vasca/doccia | C5: Vasca, ghisa, 5', standard | D5: 1 | E5: € 250.00 | F5: =RANDBETWEEN(E5+2,E5+20) -> € 267.00 | G5: =IFERROR(Costi[[#This Row],[Stimato]]-Costi[[#This Row],[Effettivo]], "") -> -€ 17.00 | H5: =IFERROR(Costi[[#This Row],[Quantità]]*Costi[[#This Row],[Stimato]], "") -> € 250.00 | I5: =IFERROR(Costi[[#This Row],[Quantità]]*Costi[[#This Row],[Effettivo]], "") -> € 267.00 | J5: =IFERROR(Costi[[#This Row],[Stimato ]]-Costi[[#This Row],[Effettivo ]], "") -> -€ 17.00
B6: Vasca/doccia | C6: Porta per doccia, con cardini, standard | D6: 1 | E6: € 200.00 | F6: € 210.00 | G6: =IFERROR(Costi[[#This Row],[Stimato]]-Costi[[#This Row],[Effettivo]], "") -> -€ 10.00 | H6: =IFERROR(Costi[[#This Row],[Quantità]]*Costi[[#This Row],[Stimato]], "") -> € 200.00 | I6: =IFERROR(Costi[[#This Row],[Quantità]]*Costi[[#This Row],[Effettivo]], "") -> € 210.00 | J6: =IFERROR(Costi[[#This Row],[Stimato ]]-Costi[[#This Row],[Effettivo ]], "") -> -€ 10.00
B7: Vasca/doccia | C7: Soffione doccia, standard | D7: 1 | E7: € 50.00 | F7: € 60.00 | G7: =IFERROR(Costi[[#This Row],[Stimato]]-Costi[[#This Row],[Effettivo]], "") -> -€ 10.00 | H7: =IFERROR(Costi[[#This Row],[Quantità]]*Costi[[#This Row],[Stimato]], "") -> € 50.00 | I7: =IFERROR(Costi[[#This Row],[Quantità]]*Costi[[#This Row],[Effettivo]], "") -> € 60.00 | J7: =IFERROR(Costi[[#This Row],[Stimato ]]-Costi[[#This Row],[Effettivo ]], "") -> -€ 10.00
B8: Vasca/doccia | C8: Pareti attrezzate vasca, standard | D8: 1 | E8: € 200.00 | F8: € 212.00 | G8: =IFERROR(Costi[[#This Row],[Stimato]]-Costi[[#This Row],[Effettivo]], "") -> -€ 12.00 | H8: =IFERROR(Costi[[#This Row],[Quantità]]*Costi[[#This Row],[Stimato]], "") -> € 200.00 | I8: =IFERROR(Costi[[#This Row],[Quantità]]*Costi[[#This Row],[Effettivo]], "") -> € 212.00 | J8: =IFERROR(Costi[[#This Row],[Stimato ]]-Costi[[#This Row],[Effettivo ]], "") -> -€ 12.00
B9: Mobili | C9: Armadietto medicinali 60 cm, deluxe | D9: 1 | E9: € 200.00 | F9: € 216.00 | G9: =IFERROR(Costi[[#This Row],[Stimato]]-Costi[[#This Row],[Effettivo]], "") -> -€ 16.00 | H9: =IFERROR(Costi[[#This Row],[Quantità]]*Costi[[#This Row],[Stimato]], "") -> € 200.00 | I9: =IFERROR(Costi[[#This Row],[Quantità]]*Costi[[#This Row],[Effettivo]], "") -> € 216.00 | J9: =IFERROR(Costi[[#This Row],[Stimato ]]-Costi[[#This Row],[Effettivo ]], "") -> -€ 16.00
B10: Mobili | C10: Vanity modulare 75 cm, standard | D10: 2 | E10: € 100.00 | F10: € 116.00 | G10: =IFERROR(Costi[[#This Row],[Stimato]]-Costi[[#This Row],[Effettivo]], "") -> -€ 16.00 | H10: =IFERROR(Costi[[#This Row],[Quantità]]*Costi[[#This Row],[Stimato]], "") -> € 200.00 | I10: =IFERROR(Costi[[#This Row],[Quantità]]*Costi[[#This Row],[Effettivo]], "") -> € 232.00 | J10: =IFERROR(Costi[[#This Row],[Stimato ]]-Costi[[#This Row],[Effettivo ]], "") -> -€ 32.00
B11: Ripiani | C11: Piastrelle in ceramica, deluxe (q.tà in metri lineari) | D11: 5 | E11: € 22.50 | F11: € 26.00 | G11: =IFERROR(Costi[[#This Row],[Stimato]]-Costi[[#This Row],[Effettivo]], "") -> -€ 3.50 | H11: =IFERROR(Costi[[#This Row],[Quantità]]*Costi[[#This Row],[Stimato]], "") -> € 112.50 | I11: =IFERROR(Costi[[#This Row],[Quantità]]*Costi[[#This Row],[Effettivo]], "") -> € 130.00 | J11: =IFERROR(Costi[[#This Row],[Stimato ]]-Costi[[#This Row],[Effettivo ]], "") -> -€ 17.50
B12: Rubinetti | C12: Rubinetto, vasca, standard | D12: 1 | E12: € 90.00 | F12: € 110.00 | G12: =IFERROR(Costi[[#This Row],[Stimato]]-Costi[[#This Row],[Effettivo]], "") -> -€ 20.00 | H12: =IFERROR(Costi[[#This Row],[Quantità]]*Costi[[#This Row],[Stimato]], "") -> € 90.00 | I12: =IFERROR(Costi[[#This Row],[Quantità]]*Costi[[#This Row],[Effettivo]], "") -> € 110.00 | J12: =IFERROR(Costi[[#This Row],[Stimato ]]-Costi[[#This Row],[Effettivo ]], "") -> -€ 20.00
B13: Rubinetti | C13: Rubinetto, vasca, miscelatore, standard | D13: 1 | E13: € 115.00 | F13: € 125.00 | G13: =IFERROR(Costi[[#This Row],[Stimato]]-Costi[[#This Row],[Effettivo]], "") -> -€ 10.00 | H13: =IFERROR(Costi[[#This Row],[Quantità]]*Costi[[#This Row],[Stimato]], "") -> € 115.00 | I13: =IFERROR(Costi[[#This Row],[Quantità]]*Costi[[#This Row],[Effettivo]], "") -> € 125.00 | J13: =IFERROR(Costi[[#This Row],[Stimato ]]-Costi[[#This Row],[Effettivo ]], "") -> -€ 10.00
B14: Rubinetti | C14: Rubinetto lavandino, standard | D14: 1 | E14: € 95.00 | F14: € 107.00 | G14: =IFERROR(Costi[[#This Row],[Stimato]]-Costi[[#This Row],[Effettivo]], "") -> -€ 12.00 | H14: =IFERROR(Costi[[#This Row],[Quantità]]*Costi[[#This Row],[Stimato]], "") -> € 95.00 | I14: =IFERROR(Costi[[#This Row],[Quantità]]*Costi[[#This Row],[Effettivo]], "") -> € 107.00 | J14: =IFERROR(Costi[[#This Row],[Stimato ]]-Costi[[#This Row],[Effettivo ]], "") -> -€ 12.00
B15: Pavimentazione | C15: Piastrelle in ceramica, standard (q.tà in metri quadrati) | D15: 35 | E15: € 12.00 | F15: € 28.00 | G15: =IFERROR(Costi[[#This Row],[Stimato]]-Costi[[#This Row],[Effettivo]], "") -> -€ 16.00 | H15: =IFERROR(Costi[[#This Row],[Quantità]]*Costi[[#This Row],[Stimato]], "") -> € 420.00 | I15: =IFERROR(Costi[[#This Row],[Quantità]]*Costi[[#This Row],[Effettivo]], "") -> € 980.00 | J15: =IFERROR(Costi[[#This Row],[Stimato ]]-Costi[[#This Row],[Effettivo ]], "") -> -€ 560.00
B16: Accessori | C16: Porta asciugamani, standard | D16: 2 | E16: € 15.00 | F16: € 21.00 | G16: =IFERROR(Costi[[#This Row],[Stimato]]-Costi[[#This Row],[Effettivo]], "") -> -€ 6.00 | H16: =IFERROR(Costi[[#This Row],[Quantità]]*Costi[[#This Row],[Stimato]], "") -> € 30.00 | I16: =IFERROR(Costi[[#This Row],[Quantità]]*Costi[[#This Row],[Effettivo]], "") -> € 42.00 | J16: =IFERROR(Costi[[#This Row],[Stimato ]]-Costi[[#This Row],[Effettivo ]], "") -> -€ 12.00
B17: Accessori | C17: Portarotolo | D17: 1 | E17: € 10.00 | F17: € 17.00 | G17: =IFERROR(Costi[[#This Row],[Stimato]]-Costi[[#This Row],[Effettivo]], "") -> -€ 7.00 | H17: =IFERROR(Costi[[#This Row],[Quantità]]*Costi[[#This Row],[Stimato]], "") -> € 10.00 | I17: =IFERROR(Costi[[#This Row],[Quantità]]*Costi[[#This Row],[Effettivo]], "") -> € 17.00 | J17: =IFERROR(Costi[[#This Row],[Stimato ]]-Costi[[#This Row],[Effettivo ]], "") -> -€ 7.00
B18: Illuminazione | C18: Luci incassate, standard | D18: 4 | E18: € 25.00 | F18: € 38.00 | G18: =IFERROR(Costi[[#This Row],[Stimato]]-Costi[[#This Row],[Effettivo]], "") -> -€ 13.00 | H18: =IFERROR(Costi[[#This Row],[Quantità]]*Costi[[#This Row],[Stimato]], "") -> € 100.00 | I18: =IFERROR(Costi[[#This Row],[Quantità]]*Costi[[#This Row],[Effettivo]], "") -> € 152.00 | J18: =IFERROR(Costi[[#This Row],[Stimato ]]-Costi[[#This Row],[Effettivo ]], "") -> -€ 52.00
B19: Lavelli | C19: Lavandino, standard | D19: 2 | E19: € 60.00 | F19: € 77.00 | G19: =IFERROR(Costi[[#This Row],[Stimato]]-Costi[[#This Row],[Effettivo]], "") -> -€ 17.00 | H19: =IFERROR(Costi[[#This Row],[Quantità]]*Costi[[#This Row],[Stimato]], "") -> € 120.00 | I19: =IFERROR(Costi[[#This Row],[Quantità]]*Costi[[#This Row],[Effettivo]], "") -> € 154.00 | J19: =IFERROR(Costi[[#This Row],[Stimato ]]-Costi[[#This Row],[Effettivo ]], "") -> -€ 34.00
B20: Altro | D20: 1 | E20: € 20.00 | F20: € 25.00 | G20: =IFERROR(Costi[[#This Row],[Stimato]]-Costi[[#This Row],[Effettivo]], "") -> -€ 5.00 | H20: =IFERROR(Costi[[#This Row],[Quantità]]*Costi[[#This Row],[Stimato]], "") -> € 20.00 | I20: =IFERROR(Costi[[#This Row],[Quantità]]*Costi[[#This Row],[Effettivo]], "") -> € 25.00 | J20: =IFERROR(Costi[[#This Row],[Stimato ]]-Costi[[#This Row],[Effettivo ]], "") -> -€ 5.00
B21: Subtotale | E21: =SUBTOTAL(109,Costi[Stimato]) -> € 1,464.50 | F21: =SUBTOTAL(109,Costi[Effettivo]) -> € 1,655.00 | G21: =SUBTOTAL(109,Costi[Differenza]) -> -€ 190.50 | H21: =SUBTOTAL(109,Costi[[Stimato ]]) -> € 2,212.50 | I21: =SUBTOTAL(109,Costi[[Effettivo ]]) -> € 3,039.00 | J21: =SUBTOTAL(109,Costi[[Differenza ]]) -> -€ 826.50
B22: Costi imprevisti (+30% stimato) | E22: =IFERROR(Costi[[#Totals],[Stimato]]*0.3, "") -> € 439.35 | H22: =IFERROR(Costi[[#Totals],[Stimato ]]*0.3, "") -> € 663.75
B23: Costi totali | E23: =IFERROR(SUM(E21:E21), "") -> € 1,464.50 | H23: =IFERROR(SUM(Costi[[#Totals],[Stimato ]],Eccedenza), "") -> € 2,876.25
